[Event "*** Titled Tuesday Blitz"]
[Site "Chess.com"]
[Date "2020.05.05"]
[Round "9"]
[White "profofchess"]
[Black "kasparicy"]
[Result "1/2-1/2"]
[WhiteElo "2442"]
[BlackElo "2314"]
[TimeControl "180+1"]
[EndTime "11:49:24 PDT"]
[Termination "Game drawn by repetition"]

1. e4 {[%clk 0:03:00.9]} 1... c5 {[%clk 0:02:58.5]} 2. Nf3 {[%clk 0:03:00.2]}
2... d6 {[%clk 0:02:58.1]} 3. c3 {[%clk 0:02:59.6]} 3... Nf6 {[%clk 0:02:56.4]}
4. Bc4 {[%clk 0:02:59.6]} 4... e6 {[%clk 0:02:55.4]} 5. Qe2 {[%clk 0:02:59.1]}
5... Be7 {[%clk 0:02:55]} 6. Bb3 {[%clk 0:02:55.7]} 6... O-O {[%clk 0:02:54.6]}
7. O-O {[%clk 0:02:55.2]} 7... a6 {[%clk 0:02:54.4]} 8. d4 {[%clk 0:02:54.4]}
8... cxd4 {[%clk 0:02:52.8]} 9. cxd4 {[%clk 0:02:55.3]} 9... b5 {[%clk
0:02:53.3]} 10. Nc3 {[%clk 0:02:51.2]} 10... Bb7 {[%clk 0:02:52]} 11. a3 {[%clk
0:02:49.8]} 11... Nbd7 {[%clk 0:02:50.1]} 12. Bg5 {[%clk 0:02:45]} 12... Rc8
{[%clk 0:02:48.6]} 13. Rac1 {[%clk 0:02:43]} 13... h6 {[%clk 0:02:42.1]} 14. Bh4
{[%clk 0:02:42.3]} 14... Nb6 {[%clk 0:02:41.4]} 15. Bg3 {[%clk 0:02:00.3]} 15...
d5 {[%clk 0:02:37.5]} 16. e5 {[%clk 0:01:54.5]} 16... Ne4 {[%clk 0:02:36.4]} 17.
Bf4 {[%clk 0:01:46.8]} 17... Nxc3 {[%clk 0:02:29.5]} 18. Rxc3 {[%clk 0:01:44.7]}
18... Rxc3 {[%clk 0:02:27.4]} 19. bxc3 {[%clk 0:01:45.6]} 19... Nc4 {[%clk
0:02:26.6]} 20. a4 {[%clk 0:01:40.5]} 20... Bc6 {[%clk 0:02:23.1]} 21. axb5
{[%clk 0:01:38.8]} 21... Bxb5 {[%clk 0:02:24]} 22. Ra1 {[%clk 0:01:26.1]} 22...
Qc7 {[%clk 0:02:20.9]} 23. Qd1 {[%clk 0:01:11.5]} 23... Rc8 {[%clk 0:02:18.1]}
24. Qc1 {[%clk 0:01:04]} 24... Bf8 {[%clk 0:02:15.2]} 25. h4 {[%clk 0:00:59.4]}
25... Nb6 {[%clk 0:02:05.1]} 26. Bd2 {[%clk 0:00:53.1]} 26... Bd3 {[%clk
0:02:02.4]} 27. Ne1 {[%clk 0:00:51]} 27... Bg6 {[%clk 0:02:01]} 28. Rxa6 {[%clk
0:00:48.2]} 28... Nc4 {[%clk 0:01:59.1]} 29. Bf4 {[%clk 0:00:42.9]} 29... Na5
{[%clk 0:01:42.2]} 30. Ba2 {[%clk 0:00:33.5]} 30... Nc4 {[%clk 0:01:38.1]} 31.
Bb1 {[%clk 0:00:31.1]} 31... Qb7 {[%clk 0:01:34.4]} 32. Ra1 {[%clk 0:00:30.1]}
32... Rb8 {[%clk 0:01:32.9]} 33. Bxg6 {[%clk 0:00:29.3]} 33... fxg6 {[%clk
0:01:31.2]} 34. Nd3 {[%clk 0:00:27.5]} 34... Qf7 {[%clk 0:01:27.9]} 35. g3
{[%clk 0:00:16.4]} 35... Qf5 {[%clk 0:01:26.4]} 36. Rb1 {[%clk 0:00:10.9]} 36...
Rc8 {[%clk 0:01:17]} 37. Ne1 {[%clk 0:00:09.6]} 37... Na3 {[%clk 0:01:12]} 38.
Ra1 {[%clk 0:00:09.4]} 38... Nb5 {[%clk 0:01:11.8]} 39. Bd2 {[%clk 0:00:07.9]}
39... Nxd4 {[%clk 0:01:11.5]} 40. Qb1 {[%clk 0:00:07.6]} 40... Nf3+ {[%clk
0:01:07.1]} 41. Nxf3 {[%clk 0:00:06.9]} 41... Qxf3 {[%clk 0:01:06.9]} 42. Qxg6
{[%clk 0:00:07.3]} 42... Qf7 {[%clk 0:00:50.8]} 43. Qxf7+ {[%clk 0:00:06.9]}
43... Kxf7 {[%clk 0:00:51.7]} 44. Ra7+ {[%clk 0:00:06.8]} 44... Kg6 {[%clk
0:00:49.8]} 45. g4 {[%clk 0:00:07.1]} 45... h5 {[%clk 0:00:50]} 46. gxh5+ {[%clk
0:00:04.1]} 46... Kxh5 {[%clk 0:00:50]} 47. Kg2 {[%clk 0:00:02.8]} 47... Kxh4
{[%clk 0:00:47.1]} 48. Ra6 {[%clk 0:00:03.2]} 48... Re8 {[%clk 0:00:45.9]} 49.
Kf3 {[%clk 0:00:02.4]} 49... Kh5 {[%clk 0:00:44.4]} 50. Ke2 {[%clk 0:00:01.6]}
50... Kg6 {[%clk 0:00:44.3]} 51. f4 {[%clk 0:00:02.5]} 51... Kf5 {[%clk
0:00:44.8]} 52. Kd3 {[%clk 0:00:03.3]} 52... Be7 {[%clk 0:00:39.9]} 53. Ra7
{[%clk 0:00:04.2]} 53... g5 {[%clk 0:00:38.5]} 54. fxg5 {[%clk 0:00:04.4]} 54...
Bxg5 {[%clk 0:00:39.4]} 55. Rf7+ {[%clk 0:00:04.2]} 55... Kg6 {[%clk 0:00:38.7]}
56. Rf3 {[%clk 0:00:05.1]} 56... Bxd2 {[%clk 0:00:35.4]} 57. Kxd2 {[%clk
0:00:06]} 57... Ra8 {[%clk 0:00:35.7]} 58. Kd3 {[%clk 0:00:06.1]} 58... Ra6
{[%clk 0:00:34.9]} 59. Rf6+ {[%clk 0:00:06.2]} 59... Kg5 {[%clk 0:00:35.3]} 60.
Kd4 {[%clk 0:00:06.6]} 60... Ra4+ {[%clk 0:00:32.5]} 61. Kd3 {[%clk 0:00:06.8]}
61... Ra6 {[%clk 0:00:32.6]} 62. c4 {[%clk 0:00:06.3]} 62... Ra3+ {[%clk
0:00:30.3]} 63. Kd4 {[%clk 0:00:06.5]} 63... Ra4 {[%clk 0:00:27.2]} 64. Rxe6
{[%clk 0:00:06.4]} 64... dxc4 {[%clk 0:00:27.6]} 65. Rf6 {[%clk 0:00:05.8]}
65... Rb4 {[%clk 0:00:24.9]} 66. Rf3 {[%clk 0:00:05.2]} 66... Ra4 {[%clk
0:00:23.8]} 67. e6 {[%clk 0:00:04.7]} 67... c3+ {[%clk 0:00:19.7]} 68. Kd5
{[%clk 0:00:04.7]} 68... c2 {[%clk 0:00:18.8]} 69. Rc3 {[%clk 0:00:04.2]} 69...
Kf6 {[%clk 0:00:18.7]} 70. Rxc2 {[%clk 0:00:03.4]} 70... Ra5+ {[%clk 0:00:18.6]}
71. Kd6 {[%clk 0:00:03.6]} 71... Ra6+ {[%clk 0:00:18.9]} 72. Kd7 {[%clk
0:00:04.1]} 72... Ra7+ {[%clk 0:00:18.9]} 73. Kd6 {[%clk 0:00:03.8]} 73... Ra6+
{[%clk 0:00:19.2]} 74. Kd5 {[%clk 0:00:04.1]} 74... Ra5+ {[%clk 0:00:19.6]} 75.
Kd6 {[%clk 0:00:03.5]} 75... Ra6+ {[%clk 0:00:19.8]} 1/2-1/2

[Event "*** Titled Tuesday Blitz"]
[Site "Chess.com"]
[Date "2020.05.05"]
[Round "9"]
[White "MarcoRiehle"]
[Black "woodhy"]
[Result "0-1"]
[WhiteElo "2599"]
[BlackElo "2446"]
[TimeControl "180+1"]
[EndTime "11:49:25 PDT"]
[Termination "woodhy won by resignation"]

1. e4 {[%clk 0:03:00.9]} 1... e6 {[%clk 0:02:53.6]} 2. c4 {[%clk 0:03:00.1]}
2... d5 {[%clk 0:02:54.5]} 3. cxd5 {[%clk 0:03:01]} 3... exd5 {[%clk 0:02:53.5]}
4. Qb3 {[%clk 0:03:01.5]} 4... Nf6 {[%clk 0:02:52]} 5. e5 {[%clk 0:03:01.4]}
5... Ne4 {[%clk 0:02:49.2]} 6. Nf3 {[%clk 0:03:01.1]} 6... Nc5 {[%clk
0:02:43.7]} 7. Qe3 {[%clk 0:03:00.1]} 7... Bg4 {[%clk 0:02:38.6]} 8. d4 {[%clk
0:02:55.2]} 8... Ne6 {[%clk 0:02:37]} 9. Nc3 {[%clk 0:02:55]} 9... Bxf3 {[%clk
0:02:33.3]} 10. gxf3 {[%clk 0:02:55.9]} 10... c5 {[%clk 0:02:29.8]} 11. Bb5+
{[%clk 0:02:52.8]} 11... Nc6 {[%clk 0:02:28.8]} 12. dxc5 {[%clk 0:02:51.7]}
12... Bxc5 {[%clk 0:02:29.7]} 13. Qd3 {[%clk 0:02:51]} 13... O-O {[%clk
0:02:26.8]} 14. f4 {[%clk 0:02:43.3]} 14... Qh4 {[%clk 0:02:04.3]} 15. Bxc6
{[%clk 0:02:29.9]} 15... Qxf2+ {[%clk 0:01:56.8]} 16. Kd1 {[%clk 0:02:29.7]}
16... bxc6 {[%clk 0:01:57.7]} 17. Qg3 {[%clk 0:02:24.1]} 17... Qxg3 {[%clk
0:01:40.9]} 18. hxg3 {[%clk 0:02:25]} 18... f6 {[%clk 0:01:41.2]} 19. exf6
{[%clk 0:02:21.2]} 19... Rxf6 {[%clk 0:01:42.1]} 20. Bd2 {[%clk 0:02:17.9]}
20... Bd4 {[%clk 0:01:30.2]} 21. Kc2 {[%clk 0:02:13.1]} 21... Nc5 {[%clk
0:01:22.8]} 22. g4 {[%clk 0:02:08]} 22... Bxc3 {[%clk 0:01:15.2]} 23. bxc3
{[%clk 0:02:05.6]} 23... Re8 {[%clk 0:01:12.6]} 24. Rhe1 {[%clk 0:01:38.8]}
24... Ne4 {[%clk 0:01:07.3]} 25. Rab1 {[%clk 0:01:35.6]} 25... Rf7 {[%clk
0:01:04.4]} 26. Be3 {[%clk 0:01:27.6]} 26... Rfe7 {[%clk 0:01:00.9]} 27. Bd4
{[%clk 0:01:22.6]} 27... Rf7 {[%clk 0:00:53.3]} 28. f5 {[%clk 0:01:13.6]} 28...
Rc8 {[%clk 0:00:51.1]} 29. Rb2 {[%clk 0:00:58.3]} 29... Nd6 {[%clk 0:00:45.8]}
30. Re6 {[%clk 0:00:44.8]} 30... Nc4 {[%clk 0:00:35.4]} 31. Rb3 {[%clk
0:00:44.6]} 31... c5 {[%clk 0:00:31.6]} 32. Bg1 {[%clk 0:00:43.7]} 32... d4
{[%clk 0:00:31]} 33. Kd3 {[%clk 0:00:37.1]} 33... Ne5+ {[%clk 0:00:29.9]} 34.
Rxe5 {[%clk 0:00:33.1]} 34... c4+ {[%clk 0:00:30.1]} 35. Kxd4 {[%clk 0:00:30.9]}
35... cxb3 {[%clk 0:00:25.1]} 36. axb3 {[%clk 0:00:31.8]} 36... Rd7+ {[%clk
0:00:24.6]} 37. Ke4 {[%clk 0:00:29.4]} 37... Rxc3 {[%clk 0:00:24.1]} 38. g5
{[%clk 0:00:23.3]} 38... Kf7 {[%clk 0:00:20.1]} 39. Ra5 {[%clk 0:00:12.4]} 39...
Rxb3 {[%clk 0:00:16.4]} 40. Bxa7 {[%clk 0:00:12.2]} 40... Rb4+ {[%clk
0:00:15.3]} 41. Ke3 {[%clk 0:00:10.4]} 41... Rb3+ {[%clk 0:00:15.5]} 42. Ke4
{[%clk 0:00:10.6]} 42... Rbd3 {[%clk 0:00:15.5]} 43. Ra6 {[%clk 0:00:08.7]}
43... R3d6 {[%clk 0:00:15.3]} 44. Ra1 {[%clk 0:00:08.1]} 44... Rd1 {[%clk
0:00:14.6]} 45. Ra6 {[%clk 0:00:05.4]} 45... Re7+ {[%clk 0:00:14.8]} 46. Kf4
{[%clk 0:00:04.7]} 46... Rdd7 {[%clk 0:00:14.1]} 47. Bc5 {[%clk 0:00:02.9]}
47... Re8 {[%clk 0:00:14.2]} 48. g6+ {[%clk 0:00:03.4]} 48... hxg6 {[%clk
0:00:14.1]} 49. fxg6+ {[%clk 0:00:04.3]} 49... Kg8 {[%clk 0:00:14]} 50. Ba3
{[%clk 0:00:03.8]} 50... Rb7 {[%clk 0:00:13.4]} 51. Bc5 {[%clk 0:00:03.4]} 51...
Rc7 {[%clk 0:00:13.7]} 52. Bd4 {[%clk 0:00:03.3]} 52... Rec8 {[%clk 0:00:12.6]}
53. Rd6 {[%clk 0:00:03.4]} 53... Rc6 {[%clk 0:00:12.7]} 54. Rd7 {[%clk
0:00:03.8]} 54... Rxg6 {[%clk 0:00:12.2]} 55. Kf5 {[%clk 0:00:04.3]} 55... Rg2
{[%clk 0:00:12.3]} 56. Be5 {[%clk 0:00:04.6]} 56... Rf8+ {[%clk 0:00:12.2]} 57.
Ke4 {[%clk 0:00:05]} 57... Re2+ {[%clk 0:00:12.2]} 58. Kd4 {[%clk 0:00:05.4]}
58... Rf7 {[%clk 0:00:10.9]} 59. Rd8+ {[%clk 0:00:05.8]} 59... Kh7 {[%clk
0:00:10.9]} 60. Bd6 {[%clk 0:00:06.3]} 60... Rd2+ {[%clk 0:00:10.7]} 61. Ke5
{[%clk 0:00:06.5]} 61... Rf6 {[%clk 0:00:10.7]} 62. Rd7 {[%clk 0:00:06.7]} 62...
Rdxd6 {[%clk 0:00:09.4]} 63. Rxd6 {[%clk 0:00:07.6]} 63... Rxd6 {[%clk
0:00:10.3]} 64. Kxd6 {[%clk 0:00:08.5]} 64... Kg6 {[%clk 0:00:10.5]} 65. Ke5
{[%clk 0:00:09.4]} 65... Kg5 {[%clk 0:00:10.7]} 66. Ke4 {[%clk 0:00:10.3]} 66...
Kg4 {[%clk 0:00:11]} 67. Ke3 {[%clk 0:00:10.5]} 67... Kg3 {[%clk 0:00:11.2]} 68.
Ke2 {[%clk 0:00:10.7]} 68... Kg2 {[%clk 0:00:11.3]} 69. Ke3 {[%clk 0:00:10.8]}
69... g5 {[%clk 0:00:11.5]} 70. Ke4 {[%clk 0:00:11.2]} 70... g4 {[%clk
0:00:11.9]} 71. Kf4 {[%clk 0:00:11.8]} 71... g3 {[%clk 0:00:12.3]} 0-1

[Event "*** Titled Tuesday Blitz"]
[Site "Chess.com"]
[Date "2020.05.05"]
[Round "9"]
[White "LamaChampetre"]
[Black "Saloni1299"]
[Result "1/2-1/2"]
[WhiteElo "2192"]
[BlackElo "2332"]
[TimeControl "180+1"]
[EndTime "11:49:25 PDT"]
[Termination "Game drawn - insufficient material"]

1. d4 {[%clk 0:03:00.9]} 1... Nf6 {[%clk 0:02:59.5]} 2. c4 {[%clk 0:02:59.9]}
2... g6 {[%clk 0:02:58.2]} 3. Nc3 {[%clk 0:02:57.6]} 3... d5 {[%clk 0:02:54.5]}
4. cxd5 {[%clk 0:02:58.2]} 4... Nxd5 {[%clk 0:02:55.4]} 5. e4 {[%clk 0:02:58.6]}
5... Nxc3 {[%clk 0:02:54.5]} 6. bxc3 {[%clk 0:02:59.5]} 6... Bg7 {[%clk
0:02:53.9]} 7. Nf3 {[%clk 0:02:59.7]} 7... c5 {[%clk 0:02:46.2]} 8. Be3 {[%clk
0:02:59.8]} 8... Qa5 {[%clk 0:02:44.9]} 9. Qd2 {[%clk 0:02:57.2]} 9... cxd4
{[%clk 0:02:38.7]} 10. cxd4 {[%clk 0:02:55.5]} 10... Qxd2+ {[%clk 0:02:27.9]}
11. Nxd2 {[%clk 0:02:55.2]} 11... Nc6 {[%clk 0:02:27.1]} 12. Nb3 {[%clk
0:02:55.2]} 12... O-O {[%clk 0:02:07.3]} 13. Rc1 {[%clk 0:02:37.2]} 13... e6
{[%clk 0:01:48.8]} 14. Be2 {[%clk 0:02:36.5]} 14... Bd7 {[%clk 0:01:46.8]} 15.
O-O {[%clk 0:02:34.7]} 15... Rfc8 {[%clk 0:01:37.7]} 16. Rfd1 {[%clk 0:02:27.9]}
16... Nb4 {[%clk 0:01:36.9]} 17. Nc5 {[%clk 0:02:17.6]} 17... Bc6 {[%clk
0:01:06.3]} 18. a3 {[%clk 0:02:12.3]} 18... Na6 {[%clk 0:00:55.6]} 19. Nxa6
{[%clk 0:02:08.3]} 19... bxa6 {[%clk 0:00:54.3]} 20. Bxa6 {[%clk 0:02:07.6]}
20... Ba4 {[%clk 0:00:44.1]} 21. Bxc8 {[%clk 0:01:35.1]} 21... Bxd1 {[%clk
0:00:42.4]} 22. Bxe6 {[%clk 0:01:25.5]} 22... fxe6 {[%clk 0:00:37.5]} 23. Rxd1
{[%clk 0:01:24.9]} 23... Rc8 {[%clk 0:00:37.7]} 24. d5 {[%clk 0:01:22.3]} 24...
exd5 {[%clk 0:00:35.3]} 25. exd5 {[%clk 0:01:22.3]} 25... Rc3 {[%clk 0:00:35]}
26. d6 {[%clk 0:01:00.9]} 26... Bf6 {[%clk 0:00:33.7]} 27. Bxa7 {[%clk
0:00:57.8]} 27... Rxa3 {[%clk 0:00:30.1]} 28. Bb6 {[%clk 0:00:57.6]} 28... Rb3
{[%clk 0:00:28.5]} 29. Bc7 {[%clk 0:00:54.7]} 29... Rc3 {[%clk 0:00:22]} 30. g3
{[%clk 0:00:43.7]} 30... Kg7 {[%clk 0:00:21.1]} 31. Bb6 {[%clk 0:00:23.5]} 31...
Rc6 {[%clk 0:00:20.2]} 32. Bc7 {[%clk 0:00:18.2]} 32... Be5 {[%clk 0:00:19]} 33.
f4 {[%clk 0:00:13.5]} 33... Bf6 {[%clk 0:00:18.3]} 34. Kg2 {[%clk 0:00:12.3]}
34... h5 {[%clk 0:00:18.1]} 35. Kf3 {[%clk 0:00:12.3]} 35... Rc3+ {[%clk
0:00:18]} 36. Ke4 {[%clk 0:00:11.6]} 36... Rc2 {[%clk 0:00:18.6]} 37. d7 {[%clk
0:00:10.4]} 37... Rxc7 {[%clk 0:00:18]} 38. d8=Q {[%clk 0:00:10.3]} 38... Bxd8
{[%clk 0:00:18.6]} 39. Rxd8 {[%clk 0:00:10.7]} 39... Rc2 {[%clk 0:00:19.2]} 40.
h4 {[%clk 0:00:10.1]} 40... Rc3 {[%clk 0:00:19.6]} 41. Rd7+ {[%clk 0:00:09.7]}
41... Kh6 {[%clk 0:00:20]} 42. Rd6 {[%clk 0:00:07.8]} 42... Rxg3 {[%clk
0:00:18.8]} 43. f5 {[%clk 0:00:07.9]} 43... Rg4+ {[%clk 0:00:19.3]} 44. Ke5
{[%clk 0:00:07.6]} 44... Kg7 {[%clk 0:00:19.6]} 45. f6+ {[%clk 0:00:07.3]} 45...
Kh6 {[%clk 0:00:20]} 46. Rd7 {[%clk 0:00:07]} 46... Rg1 {[%clk 0:00:19.3]} 47.
Ke6 {[%clk 0:00:07]} 47... Re1+ {[%clk 0:00:19]} 48. Kf7 {[%clk 0:00:07.2]}
48... g5 {[%clk 0:00:18.7]} 49. Re7 {[%clk 0:00:06.7]} 49... Rf1 {[%clk
0:00:17.7]} 50. hxg5+ {[%clk 0:00:05.8]} 50... Kxg5 {[%clk 0:00:18.6]} 51. Re6
{[%clk 0:00:05.5]} 51... h4 {[%clk 0:00:18.5]} 52. Kg7 {[%clk 0:00:05.8]} 52...
h3 {[%clk 0:00:16.8]} 53. f7 {[%clk 0:00:06]} 53... Rxf7+ {[%clk 0:00:11.9]} 54.
Kxf7 {[%clk 0:00:06.2]} 54... h2 {[%clk 0:00:11.9]} 55. Rg6+ {[%clk 0:00:06.6]}
55... Kf4 {[%clk 0:00:12.1]} 56. Rh6 {[%clk 0:00:06.5]} 56... Kg3 {[%clk
0:00:12.5]} 57. Kg6 {[%clk 0:00:06.5]} 57... Kg2 {[%clk 0:00:12.3]} 58. Rxh2+
{[%clk 0:00:06]} 58... Kxh2 {[%clk 0:00:13.2]} 1/2-1/2

[Event "*** Titled Tuesday Blitz"]
[Site "Chess.com"]
[Date "2020.05.05"]
[Round "9"]
[White "oneshot007"]
[Black "vovachesss"]
[Result "1/2-1/2"]
[WhiteElo "2408"]
[BlackElo "2552"]
[TimeControl "180+1"]
[EndTime "11:49:26 PDT"]
[Termination "Game drawn by repetition"]

1. e4 {[%clk 0:03:00.9]} 1... Nf6 {[%clk 0:03:00]} 2. e5 {[%clk 0:02:58.4]} 2...
Nd5 {[%clk 0:03:00.6]} 3. c4 {[%clk 0:02:58.7]} 3... Nb6 {[%clk 0:03:00.6]} 4.
c5 {[%clk 0:02:59.1]} 4... Nd5 {[%clk 0:03:00.8]} 5. Nc3 {[%clk 0:03:00]} 5...
e6 {[%clk 0:03:01.4]} 6. d4 {[%clk 0:02:59.4]} 6... Nxc3 {[%clk 0:02:57.1]} 7.
bxc3 {[%clk 0:02:59.2]} 7... d6 {[%clk 0:02:58]} 8. cxd6 {[%clk 0:02:59.3]} 8...
cxd6 {[%clk 0:02:58.4]} 9. Nf3 {[%clk 0:03:00.2]} 9... Nc6 {[%clk 0:02:58.7]}
10. Bd3 {[%clk 0:02:59.8]} 10... dxe5 {[%clk 0:02:45.6]} 11. dxe5 {[%clk
0:02:59.7]} 11... Qa5 {[%clk 0:02:32.8]} 12. O-O {[%clk 0:02:47]} 12... Nxe5
{[%clk 0:02:32.6]} 13. Nxe5 {[%clk 0:02:46.2]} 13... Qxe5 {[%clk 0:02:33.5]} 14.
Re1 {[%clk 0:02:44.4]} 14... Qc7 {[%clk 0:02:32.3]} 15. Bb5+ {[%clk 0:02:43.7]}
15... Bd7 {[%clk 0:02:32.3]} 16. Bf4 {[%clk 0:02:41.4]} 16... Qc8 {[%clk
0:02:32.6]} 17. Bxd7+ {[%clk 0:02:31.8]} 17... Qxd7 {[%clk 0:02:33.5]} 18. Qh5
{[%clk 0:02:32.5]} 18... Be7 {[%clk 0:02:28.9]} 19. Rad1 {[%clk 0:02:29.7]}
19... Qc6 {[%clk 0:02:29.4]} 20. Bd6 {[%clk 0:02:06.4]} 20... g6 {[%clk
0:02:09.1]} 21. Qe5 {[%clk 0:01:36.1]} 21... Rg8 {[%clk 0:02:00.1]} 22. Bxe7
{[%clk 0:01:35.5]} 22... Kxe7 {[%clk 0:01:58.4]} 23. Rd4 {[%clk 0:01:35.3]}
23... Rad8 {[%clk 0:01:55.5]} 24. Qg5+ {[%clk 0:01:29.3]} 24... f6 {[%clk
0:01:48.4]} 25. Qh4 {[%clk 0:01:29.4]} 25... h5 {[%clk 0:01:32.4]} 26. Rc4
{[%clk 0:01:29.1]} 26... Qd6 {[%clk 0:01:28.7]} 27. Qe4 {[%clk 0:01:23.1]} 27...
Kf7 {[%clk 0:00:39.5]} 28. Qxb7+ {[%clk 0:01:17.9]} 28... Rd7 {[%clk 0:00:39.6]}
29. Qf3 {[%clk 0:01:18.2]} 29... Rgd8 {[%clk 0:00:34.9]} 30. h3 {[%clk
0:01:12.4]} 30... Qd5 {[%clk 0:00:33.4]} 31. Qe2 {[%clk 0:01:07.4]} 31... e5
{[%clk 0:00:29.7]} 32. f4 {[%clk 0:01:05.6]} 32... Re7 {[%clk 0:00:22.6]} 33.
Re4 {[%clk 0:01:02]} 33... Rde8 {[%clk 0:00:20.5]} 34. f5 {[%clk 0:00:58.8]}
34... gxf5 {[%clk 0:00:19.5]} 35. Qxh5+ {[%clk 0:00:44.9]} 35... Ke6 {[%clk
0:00:19.8]} 36. Ra4 {[%clk 0:00:37.2]} 36... Rg8 {[%clk 0:00:17]} 37. Ra6+
{[%clk 0:00:34.5]} 37... Kd7 {[%clk 0:00:16.6]} 38. Qxf5+ {[%clk 0:00:31.6]}
38... Kc7 {[%clk 0:00:14.7]} 39. Qf2 {[%clk 0:00:22.4]} 39... Kb8 {[%clk
0:00:13.7]} 40. Rxf6 {[%clk 0:00:19.2]} 40... Reg7 {[%clk 0:00:03.9]} 41. Rf8+
{[%clk 0:00:19.1]} 41... Kb7 {[%clk 0:00:03.7]} 42. Rxg8 {[%clk 0:00:18.6]}
42... Rxg8 {[%clk 0:00:03.4]} 43. Rb1+ {[%clk 0:00:16.3]} 43... Ka8 {[%clk
0:00:03.8]} 44. Rf1 {[%clk 0:00:12.1]} 44... e4 {[%clk 0:00:03.4]} 45. Qf7
{[%clk 0:00:09.8]} 45... Qg5 {[%clk 0:00:02.9]} 46. Qf2 {[%clk 0:00:04.9]} 46...
Qd5 {[%clk 0:00:03.2]} 47. Qe3 {[%clk 0:00:04.1]} 47... Qc6 {[%clk 0:00:02.3]}
48. Rf2 {[%clk 0:00:04.4]} 48... Qd5 {[%clk 0:00:02.2]} 49. Kh2 {[%clk
0:00:04.6]} 49... Qd6+ {[%clk 0:00:02.3]} 50. Qf4 {[%clk 0:00:03.8]} 50... Qd5
{[%clk 0:00:03.2]} 51. Qf7 {[%clk 0:00:03.7]} 51... Qd8 {[%clk 0:00:02.6]} 52.
Rf4 {[%clk 0:00:02.9]} 52... Qg5 {[%clk 0:00:02.7]} 53. Rg4 {[%clk 0:00:02.4]}
53... Qe5+ {[%clk 0:00:02.6]} 54. Kh1 {[%clk 0:00:02.2]} 54... Rxg4 {[%clk
0:00:02.7]} 55. hxg4 {[%clk 0:00:01.8]} 55... e3 {[%clk 0:00:03.6]} 56. Qg8+
{[%clk 0:00:01.4]} 56... Kb7 {[%clk 0:00:03.7]} 57. Qb3+ {[%clk 0:00:01.5]}
57... Kc7 {[%clk 0:00:03.3]} 58. Qd1 {[%clk 0:00:02.4]} 58... e2 {[%clk
0:00:03.2]} 59. Qe1 {[%clk 0:00:02.9]} 59... Qe3 {[%clk 0:00:02.8]} 60. Kh2
{[%clk 0:00:02.8]} 60... Qf4+ {[%clk 0:00:01.9]} 61. Kg1 {[%clk 0:00:02.8]}
61... Qe3+ {[%clk 0:00:02.2]} 62. Kh2 {[%clk 0:00:03.1]} 62... Qe5+ {[%clk
0:00:02.6]} 63. Kg1 {[%clk 0:00:03.5]} 63... Qe3+ {[%clk 0:00:01.9]} 64. Kh2
{[%clk 0:00:03.8]} 1/2-1/2